bitfinex-derivatives/quotes_BTCF0:USTF0_20241021
["timestamp","ask_amount","ask_price","bid_price","bid_amount"]
[1729543101522,0.011,67710.0,67709.0,0.12010636]
[1729543101728,0.073848,67731.0,67728.0,0.073849]
[1729543101921,0.073845,67733.0,67731.0,0.073846]
[1729543102122,0.47324,67737.0,67729.0,0.073848]
[1729543102123,0.073841,67736.0,67729.0,0.073848]
[1729543102322,0.073846,67733.0,67729.0,0.073848]
[1729543102528,0.47324,67737.0,67727.0,0.3608]
[1729543102717,0.47324,67737.0,67731.0,0.073846]
[1729543102917,0.47324,67737.0,67728.0,0.001]
[1729543103123,0.073849,67730.0,67728.0,0.001]
[1729543103628,0.073849,67730.0,67727.0,0.43641]
[1729543103830,0.073849,67730.0,67727.0,0.3618]
[1729543104024,0.073849,67730.0,67728.0,0.07385]
[1729543104226,0.080849,67730.0,67728.0,0.07485]
[1729543105325,0.080849,67730.0,67728.0,0.07585]
[1729543105729,0.073849,67730.0,67728.0,0.07485]
[1729543106823,0.073849,67729.0,67728.0,0.07485]
[1729543107928,0.073849,67729.0,67728.0,0.07385]
[1729543108123,0.073849,67729.0,67728.0,0.07485]
[1729543108324,0.36602223,67737.0,67730.0,0.073847]
[1729543108533,0.073847,67731.0,67730.0,0.073847]
[1729543109525,0.073847,67731.0,67730.0,0.074847]
[1729543111227,0.073847,67731.0,67730.0,0.075847]
[1729543117731,0.073846,67733.0,67732.0,0.073845]
[1729543117921,0.073847,67731.0,67730.0,0.075848]
[1729543119030,0.073847,67731.0,67730.0,0.074848]
[1729543119235,0.073847,67731.0,67730.0,0.073848]
[1729543119928,0.073847,67731.0,67730.0,0.074848]
[1729543120533,0.073847,67731.0,67730.0,0.075848]
[1729543122631,0.073847,67731.0,67730.0,0.002]
[1729543122831,0.073847,67731.0,67714.0,0.04413014]
[1729543123031,0.073855,67724.0,67723.0,0.073855]
[1729543123939,0.073851,67727.0,67726.0,0.073851]
[1729543127433,0.074851,67727.0,67726.0,0.073851]
[1729543130237,0.04540273,67727.0,67720.0,0.3608]
[1729543130441,0.073858,67724.0,67723.0,0.073855]
[1729543130641,0.11826073,67724.0,67723.0,0.073855]
[1729543130841,0.073858,67724.0,67723.0,0.073855]
[1729543131133,0.11810495,67724.0,67723.0,0.073855]
[1729543132750,0.12337315,67724.0,67723.0,0.073855]
[1729543133447,0.12447374,67724.0,67723.0,0.073855]
[1729543134939,0.0801262,67724.0,67723.0,0.073855]
[1729543136649,0.074858,67724.0,67723.0,0.073855]
[1729543138051,0.001,67724.0,67723.0,0.073855]
[1729543138536,0.001,67724.0,67723.0,0.168555]
[1729543145150,0.04567212,67724.0,67723.0,0.168555]
[1729543146858,0.04564514,67724.0,67723.0,0.168555]
[1729543147051,0.11949914,67724.0,67723.0,0.073855]
[1729543150052,0.074854,67724.0,67723.0,0.073855]
[1729543158156,0.12003651,67724.0,67723.0,0.073855]
[1729543161754,0.074854,67724.0,67723.0,0.073855]
[1729543161965,0.12002238,67724.0,67723.0,0.073855]
[1729543162863,0.1714252,67724.0,67723.0,0.073855]
[1729543165167,0.074854,67724.0,67723.0,0.073855]
[1729543172970,0.074854,67724.0,67723.0,0.11817059]
[1729543173172,0.074854,67724.0,67723.0,0.073855]
[1729543173379,0.074854,67724.0,67723.0,0.11817059]
[1729543175468,0.074854,67724.0,67723.0,0.073855]
[1729543175774,0.001,67724.0,67723.0,0.073855]
[1729543175969,0.001,67724.0,67723.0,0.136955]
[1729543176369,0.001,67724.0,67723.0,0.18127059]
[1729543177776,0.001,67724.0,67723.0,0.136955]
[1729543180081,0.04622539,67724.0,67723.0,0.136955]
[1729543182184,0.04618767,67724.0,67723.0,0.136955]
[1729543187888,0.09768485,67724.0,67723.0,0.136955]
[1729543188089,0.09768485,67724.0,67723.0,0.19579519]
[1729543188090,0.074854,67724.0,67723.0,0.19579519]
[1729543190191,0.074854,67724.0,67723.0,0.136955]
[1729543195203,0.12003905,67724.0,67723.0,0.136955]
[1729543197310,0.12003925,67724.0,67723.0,0.136955]
[1729543201114,0.12027536,67724.0,67723.0,0.136955]
[1729543203313,0.074854,67724.0,67723.0,0.136955]
[1729543203511,0.074854,67724.0,67723.0,0.073855]
[1729543203709,0.074854,67724.0,67723.0,0.11817134]
[1729543204114,0.074854,67724.0,67723.0,0.073855]
[1729543207825,0.074854,67724.0,67723.0,0.11817174]
[1729543208215,0.074854,67724.0,67723.0,0.073855]
[1729543208517,0.074854,67724.0,67723.0,0.11817197]
[1729543208911,0.074854,67724.0,67723.0,0.073855]
[1729543211124,0.435654,67724.0,67720.0,0.07355024]
[1729543211326,0.073859,67720.0,67719.0,0.14740924]
[1729543211721,0.073859,67720.0,67719.0,0.073859]
[1729543213910,0.073856,67723.0,67722.0,0.073856]
[1729543214317,0.106445,67733.0,67730.0,0.073847]
[1729543214318,0.073848,67731.0,67730.0,0.073847]
[1729543214516,0.073848,67731.0,67730.0,0.13292633]
[1729543214717,0.073848,67731.0,67730.0,0.073847]
[1729543215717,0.073848,67731.0,67730.0,0.074847]
[1729543217230,0.074848,67731.0,67730.0,0.075847]
[1729543224028,0.001,67731.0,67730.0,0.08105804]
[1729543225330,0.001,67731.0,67730.0,0.26391338]
[1729543225632,0.001,67731.0,67730.0,0.26391127]
[1729543226133,0.001,67731.0,67730.0,0.17565098]
[1729543229133,0.001,67731.0,67730.0,0.26413926]
[1729543229329,0.073839,67739.0,67738.0,0.073837]
[1729543229528,0.07604689,67745.0,67744.0,0.073833]
[1729543229932,0.07604689,67745.0,67744.0,0.1475685]
[1729543230233,0.07604689,67745.0,67744.0,0.073833]
[1729543230837,0.07604689,67745.0,67744.0,0.074833]
[1729543231428,0.07604689,67745.0,67737.0,0.3608]
[1729543231429,0.073834,67743.0,67741.0,0.0737355]
[1729543231633,0.073834,67743.0,67742.0,0.05894305]
[1729543231834,0.073834,67743.0,67742.0,0.05894308]
[1729543232142,0.627754,67743.0,67739.0,0.04420921]
[1729543232327,0.073837,67740.0,67739.0,0.04420921]
[1729543232534,0.073838,67739.0,67738.0,0.04420921]
[1729543233039,0.545718,67739.0,67737.0,0.04420921]
[1729543233240,0.104639,67738.0,67729.0,0.3608]
[1729543233442,0.073848,67730.0,67729.0,0.3608]
[1729543233637,0.073852,67726.0,67725.0,0.073852]
[1729543233940,0.073858,67722.0,67721.0,0.073857]
[1729543235041,0.073859,67720.0,67719.0,0.14298464]
[1729543235937,0.073859,67720.0,67719.0,0.0308]
[1729543237032,0.073859,67720.0,67719.0,0.0328]
[1729543237546,0.073859,67720.0,67719.0,0.10466]
[1729543237742,0.073859,67720.0,67719.0,0.10666]
[1729543240345,0.073859,67720.0,67719.0,0.20129806]
[1729543240541,0.073859,67720.0,67719.0,0.20129807]
[1729543243849,0.073859,67720.0,67719.0,0.17049807]
[1729543244150,0.073859,67720.0,67719.0,0.16949807]
[1729543245336,0.073859,67720.0,67719.0,0.09563807]
[1729543245337,0.07926129,67720.0,67719.0,0.09563807]
[1729543245541,0.07926129,67720.0,67716.0,0.00221489]
[1729543245742,0.434662,67717.0,67716.0,0.00221489]
[1729543246851,0.434662,67717.0,67716.0,0.00421489]
[1729543251244,0.434662,67717.0,67716.0,0.002]
[1729543252855,0.545462,67717.0,67716.0,0.002]
[1729543255456,0.545462,67717.0,67716.0,0.04617749]
[1729543258345,0.545462,67717.0,67716.0,0.002]
[1729543258659,0.545462,67717.0,67716.0,0.04617749]
[1729543258962,0.545462,67717.0,67716.0,0.002]
[1729543259459,0.545462,67717.0,67716.0,0.04617749]
[1729543259855,0.545462,67717.0,67716.0,0.002]
[1729543260251,0.545462,67717.0,67716.0,0.04617749]
[1729543260561,0.545462,67717.0,67716.0,0.002]
[1729543262260,0.073862,67717.0,67716.0,0.002]
[1729543262475,0.073862,67717.0,67716.0,0.14953372]
[1729543262661,0.073862,67717.0,67716.0,0.17087802]
[1729543266261,0.073859,67720.0,67719.0,0.073857]
[1729543266465,0.073859,67720.0,67719.0,0.24262475]
[1729543266664,0.073859,67720.0,67719.0,0.24262405]
[1729543267965,0.073859,67720.0,67719.0,0.16876705]
[1729543268262,0.073859,67720.0,67719.0,0.09501502]
[1729543268662,0.073859,67720.0,67719.0,0.094912]
[1729543270462,0.073863,67716.0,67715.0,0.00545482]
[1729543270661,0.073864,67715.0,67714.0,0.167365]
[1729543271466,0.073864,67715.0,67714.0,0.17261364]
[1729543271671,0.073861,67718.0,67717.0,0.073858]
[1729543272481,0.3608,67726.0,67714.0,0.17761364]
[1729543272658,0.073858,67721.0,67720.0,0.073856]
[1729543275260,0.073858,67721.0,67720.0,0.076856]
[1729543275873,0.073854,67724.0,67723.0,0.073853]
[1729543277570,0.073854,67724.0,67723.0,0.25670692]
[1729543277878,0.073854,67724.0,67723.0,0.25770692]
[1729543278077,0.073854,67724.0,67723.0,0.16922171]
[1729543280280,0.3608,67733.0,67723.0,0.09536871]
[1729543280583,0.073851,67727.0,67726.0,0.50834196]
[1729543281279,0.073851,67727.0,67726.0,0.465648]
[1729543286178,0.073851,67727.0,67726.0,0.104848]
[1729543286381,0.073851,67727.0,67726.0,0.465648]
[1729543286578,0.073851,67727.0,67726.0,0.104848]
[1729543286778,0.073851,67727.0,67726.0,0.465648]
[1729543288076,0.073851,67727.0,67726.0,0.104848]
[1729543288279,0.073851,67727.0,67726.0,0.465648]
[1729543289178,0.073851,67727.0,67726.0,0.104848]
[1729543289379,0.073851,67727.0,67726.0,0.465648]
[1729543289970,0.073851,67727.0,67726.0,0.104848]
[1729543290579,0.073851,67727.0,67726.0,0.53934196]
[1729543291390,0.073851,67727.0,67726.0,0.6336538]
[1729543292676,0.073851,67727.0,67726.0,0.465648]
[1729543296179,0.073851,67727.0,67726.0,0.104848]
[1729543296389,0.073851,67727.0,67726.0,0.465648]
[1729543297984,0.073851,67727.0,67726.0,0.434648]
[1729543300792,0.073851,67727.0,67726.0,0.52903445]
[1729543303588,0.073851,67727.0,67726.0,0.16823445]
[1729543303991,0.073851,67727.0,67726.0,0.52903445]
[1729543304794,0.073851,67727.0,67726.0,0.16823445]
[1729543305288,0.073851,67727.0,67726.0,0.25671966]
[1729543306987,0.073851,67727.0,67726.0,0.16823445]
[1729543307396,0.073851,67727.0,67726.0,0.25689283]
[1729543307697,0.073851,67727.0,67726.0,0.073848]
[1729543308285,0.073851,67727.0,67726.0,0.11817719]
[1729543310596,0.073851,67727.0,67726.0,0.073848]
[1729543315693,0.073851,67727.0,67726.0,0.1683974]
[1729543317494,0.073851,67727.0,67726.0,0.25705859]
[1729543319394,0.073851,67727.0,67726.0,0.25705852]
[1729543321502,0.073851,67727.0,67726.0,0.16839733]
[1729543322202,0.073851,67727.0,67726.0,0.073848]
[1729543322400,0.073851,67727.0,67726.0,0.16839592]
[1729543322798,0.073851,67727.0,67726.0,0.073848]
[1729543324306,0.073851,67727.0,67726.0,0.073849]
[1729543324307,0.073852,67727.0,67726.0,0.073849]
[1729543325207,0.073852,67727.0,67726.0,0.11817151]
[1729543325411,0.073852,67727.0,67726.0,0.118171]
[1729543325708,0.073852,67727.0,67726.0,0.11817128]
[1729543325905,0.073852,67727.0,67726.0,0.073849]
[1729543326106,0.073847,67734.0,67733.0,0.073844]
[1729543327302,0.073847,67734.0,67733.0,0.074844]
[1729543328011,0.073847,67734.0,67733.0,0.435644]
[1729543328911,0.073847,67734.0,67733.0,0.436644]
[1729543329515,0.073847,67734.0,67733.0,0.44205688]
[1729543331508,0.073842,67736.0,67735.0,0.07384]
[1729543332917,0.073842,67736.0,67735.0,0.06003254]
[1729543333116,0.073842,67736.0,67735.0,0.001]
[1729543334217,0.073842,67736.0,67735.0,0.002]
[1729543336020,0.07911922,67736.0,67735.0,0.002]
[1729543340222,0.43991922,67736.0,67735.0,0.002]
[1729543347530,0.43991922,67736.0,67728.0,0.073811]
[1729543347713,0.073849,67729.0,67728.0,0.073811]
[1729543347920,0.073851,67727.0,67726.0,0.434611]
[1729543348416,0.073851,67727.0,67726.0,0.52887361]
[1729543349728,0.073851,67727.0,67726.0,0.434611]
[1729543349930,0.073851,67727.0,67726.0,0.52891551]
[1729543350130,0.073851,67727.0,67726.0,0.434611]
[1729543350627,0.073851,67727.0,67726.0,0.60275194]
[1729543350829,0.073851,67727.0,67726.0,0.508463]
[1729543351223,0.073851,67727.0,67726.0,0.434652]
[1729543352221,0.073851,67727.0,67726.0,0.073852]
[1729543363538,0.073848,67732.0,67731.0,0.073844]
[1729543363839,0.073848,67732.0,67731.0,0.434644]
[1729543364839,0.073843,67735.0,67734.0,0.073841]
[1729543366040,0.074843,67735.0,67734.0,0.074841]
[1729543366343,0.074843,67735.0,67734.0,0.075841]
[1729543369455,0.074843,67735.0,67734.0,0.002]
[1729543376054,0.074843,67735.0,67734.0,0.00181464]
[1729543380059,0.074843,67735.0,67734.0,0.07565864]
[1729543380463,0.074843,67735.0,67734.0,0.07505137]
[1729543381063,0.074843,67735.0,67734.0,0.00120737]
[1729543382060,0.074843,67735.0,67734.0,0.07505137]
[1729543382250,0.074843,67735.0,67734.0,0.1193317]
[1729543382958,0.074843,67735.0,67734.0,0.07505137]
[1729543385361,0.001,67735.0,67734.0,0.07505137]
[1729543389070,0.001,67735.0,67734.0,0.43585137]
[1729543391062,0.001,67735.0,67734.0,0.60319794]
[1729543391273,0.001,67735.0,67734.0,0.52938694]
[1729543391969,0.001,67735.0,67734.0,0.97230694]
[1729543394068,0.001,67735.0,67734.0,0.52938694]
[1729543396070,0.001,67735.0,67734.0,0.43585137]
[1729543396270,0.001,67735.0,67734.0,0.52915823]
[1729543397976,0.001,67735.0,67734.0,0.43585137]
[1729543400878,0.00072342,67739.0,67738.0,0.073839]
[1729543402185,0.00172342,67739.0,67738.0,0.074839]
[1729543404983,0.00172342,67739.0,67738.0,0.001]
[1729543404984,0.07556142,67739.0,67738.0,0.001]
[1729543405187,0.12164088,67739.0,67738.0,0.001]
[1729543406187,0.07556142,67739.0,67738.0,0.001]
[1729543408681,0.08082805,67739.0,67738.0,0.001]
[1729543411883,0.07556142,67739.0,67738.0,0.001]
[1729543420593,0.07556142,67739.0,67738.0,0.04520225]
[1729543422191,0.07556142,67739.0,67738.0,0.001]
[1729543422390,0.07556142,67739.0,67738.0,0.04520225]
[1729543425600,0.07556142,67739.0,67738.0,0.001]
[1729543434203,0.12167256,67739.0,67738.0,0.001]
[1729543435207,0.07556142,67739.0,67738.0,0.001]
[1729543437412,0.07556142,67739.0,67738.0,0.00636624]
[1729543437713,0.07556142,67739.0,67738.0,0.001]
[1729543440007,0.07556142,67739.0,67738.0,0.074839]
[1729543440311,0.07556142,67739.0,67738.0,0.001]
[1729543441607,0.07556142,67739.0,67738.0,0.074839]
[1729543442213,0.07556142,67739.0,67738.0,0.001]
[1729543443415,0.07556142,67739.0,67738.0,0.09470925]
[1729543450216,0.07556142,67739.0,67738.0,0.001]
[1729543450520,0.07556142,67739.0,67738.0,0.074839]
[1729543451019,0.00172342,67739.0,67738.0,0.074839]
[1729543471739,0.00172342,67739.0,67738.0,0.1487026]
[1729543471941,0.00172342,67739.0,67738.0,0.074839]
[1729543472432,0.00172342,67739.0,67738.0,0.1487026]
[1729543472829,0.00172342,67739.0,67738.0,0.074839]
[1729543473030,0.00172342,67739.0,67738.0,0.1487026]
[1729543473229,0.00172342,67739.0,67738.0,0.074839]
[1729543478142,0.07556142,67739.0,67738.0,0.074839]
[1729543478439,0.07556142,67739.0,67738.0,0.001]
[1729543479429,0.12170827,67739.0,67738.0,0.001]
[1729543479830,0.07556142,67739.0,67738.0,0.001]
[1729543480034,0.12168554,67739.0,67738.0,0.001]
[1729543480236,0.07556142,67739.0,67738.0,0.001]
[1729543481335,0.10666142,67739.0,67738.0,0.001]
[1729543482737,0.91034142,67739.0,67733.0,0.05902597]
[1729543482939,0.07385,67728.0,67727.0,0.05902597]
[1729543483139,0.3608,67730.0,67725.0,0.41982597]
[1729543483339,0.3608,67730.0,67724.0,0.00221459]
[1729543483340,0.073853,67725.0,67724.0,0.00221459]
[1729543483853,0.073865,67714.0,67713.0,0.05902597]
[1729543484441,0.07387,67710.0,67709.0,0.3608]
[1729543486642,0.07387,67710.0,67709.0,0.3748]
[1729543486942,0.07387,67710.0,67709.0,0.460671]
[1729543490544,0.07387,67710.0,67709.0,0.099871]
[1729543511276,0.07387,67710.0,67709.0,0.19421946]
[1729543512576,0.07387,67710.0,67709.0,0.28288065]
[1729543512875,0.07387,67710.0,67709.0,0.19421946]
[1729543513074,0.07387,67710.0,67709.0,0.28280693]
[1729543513273,0.07387,67710.0,67709.0,0.19421946]
[1729543515875,0.07387,67710.0,67709.0,0.19442469]
[1729543518472,0.07387,67710.0,67709.0,0.099871]
[1729543519574,0.07387,67710.0,67709.0,0.026]
[1729543519782,0.07387,67710.0,67709.0,0.099863]
[1729543521274,0.073859,67714.0,67713.0,0.073856]
[1729543523688,0.073859,67714.0,67713.0,0.092856]
[1729543524084,0.073859,67714.0,67713.0,0.09747473]
[1729543524982,0.073859,67714.0,67713.0,0.092856]
[1729543525188,0.073859,67714.0,67713.0,0.09747473]
[1729543525681,0.073859,67714.0,67713.0,0.1917395]
[1729543526775,0.073859,67714.0,67713.0,0.09747473]
[1729543526980,0.073859,67714.0,67713.0,0.092856]
[1729543531281,0.073859,67714.0,67713.0,0.16671608]
[1729543531982,0.073854,67718.0,67714.0,0.073858]
[1729543532187,0.073854,67718.0,67717.0,0.434655]
[1729543532484,0.073854,67718.0,67717.0,0.5337225]
[1729543533177,0.073854,67718.0,67717.0,0.52910363]
[1729543533372,0.073854,67718.0,67717.0,0.43927355]
[1729543533580,0.073854,67718.0,67717.0,0.4438921]
[1729543534084,0.073854,67718.0,67717.0,0.44327355]
[1729543534987,0.073854,67718.0,67717.0,0.45027355]
[1729543535192,0.073854,67718.0,67717.0,0.445655]
[1729543538484,0.073854,67718.0,67717.0,0.61336174]
[1729543539487,0.00221557,67724.0,67717.0,0.45027318]
[1729543539692,0.07606257,67724.0,67723.0,0.41982549]
[1729543540491,0.07606257,67724.0,67723.0,0.3608]
[1729543542093,0.07706257,67724.0,67723.0,0.3608]
[1729543542693,0.07706257,67724.0,67723.0,0.3618]
[1729543557618,0.07706257,67724.0,67723.0,0.42082549]
[1729543559415,0.07706257,67724.0,67723.0,0.3618]
[1729543566427,0.07706257,67724.0,67723.0,0.435648]
[1729543568920,0.12313082,67724.0,67723.0,0.435648]
[1729543569118,0.12091525,67724.0,67723.0,0.435648]
[1729543570123,0.074847,67724.0,67723.0,0.435648]
[1729543570723,0.074847,67724.0,67723.0,0.498248]
[1729543570913,0.074847,67724.0,67723.0,0.59201561]
[1729543572521,0.074847,67724.0,67723.0,0.59663339]
[1729543578107,0.074847,67724.0,67723.0,0.50286578]
[1729543583218,0.074847,67724.0,67723.0,0.50286588]
[1729543585927,0.074847,67724.0,67723.0,0.5966845]
[1729543586817,0.074847,67724.0,67723.0,0.59206662]
[1729543587015,0.074847,67724.0,67723.0,0.5966845]
[1729543588935,0.074847,67724.0,67723.0,0.67054274]
[1729543589825,0.074847,67724.0,67723.0,0.67055944]
[1729543590927,0.074847,67724.0,67723.0,0.66594156]
[1729543591128,0.074847,67724.0,67723.0,0.67055944]
[1729543592323,0.074847,67724.0,67723.0,0.5967012]
[1729543592937,0.074847,67724.0,67723.0,0.50286588]
[1729543601737,0.074847,67724.0,67723.0,0.502866]
[1729543603642,0.074847,67724.0,67723.0,0.67066102]
[1729543607043,0.074847,67724.0,67723.0,0.59680462]
[1729543607547,0.074847,67724.0,67723.0,0.59218662]
[1729543608236,0.074847,67724.0,67723.0,0.4244]
[1729543608439,0.074847,67724.0,67723.0,0.3925]
[1729543612042,0.074847,67724.0,67723.0,0.466348]
[1729543612535,0.10744819,67738.0,67731.0,0.073838]
[1729543612737,0.10744819,67738.0,67737.0,0.7216]
[1729543612738,0.07604819,67738.0,67737.0,0.7216]
[1729543612938,0.12821843,67738.0,67737.0,0.7216]
[1729543613137,0.08125697,67738.0,67737.0,0.7216]
[1729543613927,0.08225697,67738.0,67737.0,0.7226]
[1729543614142,0.08625697,67738.0,67737.0,0.7236]
[1729543614536,0.08625697,67738.0,67737.0,0.7226]
[1729543614737,0.08625697,67738.0,67737.0,0.3628]
[1729543615039,0.19418742,67738.0,67737.0,0.3618]
[1729543615239,0.19818742,67738.0,67737.0,0.3618]
[1729543616242,0.15145697,67738.0,67737.0,0.3618]
[1729543624342,0.15145697,67738.0,67737.0,0.001]
[1729543631253,0.19789384,67738.0,67737.0,0.001]
[1729543632442,0.1652336,67738.0,67737.0,0.001]
[1729543632641,0.13284238,67738.0,67737.0,0.001]
[1729543634054,0.08625697,67738.0,67737.0,0.001]
[1729543641266,0.19148178,67738.0,67737.0,0.001]
[1729543642563,0.19128178,67738.0,67737.0,0.001]
[1729543651757,0.08404178,67738.0,67737.0,0.001]
[1729543652561,0.08404178,67738.0,67737.0,0.074833]
[1729543652758,0.078833,67738.0,67737.0,0.074833]
[1729543652954,0.078833,67738.0,67737.0,0.11912192]
[1729543653160,0.17966277,67738.0,67737.0,0.074833]
[1729543655065,0.05591593,67738.0,67737.0,0.517713]
[1729543655264,0.07480325,67745.0,67744.0,0.073825]
[1729543655565,0.00097925,67745.0,67744.0,0.434625]
[1729543656659,0.07480325,67745.0,67744.0,0.434625]
[1729543656861,0.07880325,67745.0,67744.0,0.436625]
[1729543658065,0.00497925,67745.0,67744.0,0.436625]
[1729543658474,0.00497925,67745.0,67744.0,0.879465]
[1729543659368,0.0760316,67752.0,67749.0,0.07382]
[1729543659668,0.0760316,67752.0,67749.0,0.43462]
[1729543660167,0.0022146,67752.0,67749.0,0.43462]
[1729543660375,0.0022146,67752.0,67751.0,0.073818]
[1729543661079,0.00114067,67756.0,67755.0,0.073813]
[1729543661267,0.07495267,67756.0,67755.0,0.434613]
[1729543663460,0.07495267,67756.0,67755.0,0.436613]
[1729543665768,0.07495267,67756.0,67755.0,0.3628]
[1729543684400,0.12244946,67756.0,67755.0,0.3628]
[1729543687009,0.12244946,67756.0,67755.0,0.436613]
[1729543689307,0.12244946,67756.0,67755.0,0.3628]
[1729543690513,0.07495267,67756.0,67755.0,0.42189926]
[1729543693303,0.07495267,67756.0,67755.0,0.49571226]
[1729543694411,0.07495267,67756.0,67755.0,0.436613]
[1729543694713,0.07495267,67756.0,67755.0,0.797413]
[1729543695512,0.00543741,67760.0,67755.0,0.797413]
[1729543695712,0.00177549,67762.0,67757.0,0.05901975]
[1729543695913,0.00177549,67762.0,67756.0,0.0643]
[1729543695914,0.00177549,67762.0,67761.0,0.434607]
[1729543696622,0.00177549,67762.0,67761.0,0.60054467]
[1729543697229,0.00177549,67762.0,67761.0,0.50946843]
[1729543697411,0.00177549,67762.0,67761.0,0.60147173]
[1729543697717,0.00177549,67762.0,67761.0,0.60146092]
[1729543698026,0.00177549,67762.0,67761.0,0.50946843]
[1729543698321,1e-08,67764.0,67763.0,0.073805]
[1729543699008,1e-08,67764.0,67763.0,0.516525]
[1729543699811,1e-08,67764.0,67763.0,0.517525]
[1729543701623,1e-08,67764.0,67763.0,0.518525]
[1729543705224,1e-08,67764.0,67763.0,0.52386988]
[1729543705424,1e-08,67764.0,67763.0,0.56806309]
[1729543706324,1e-08,67764.0,67763.0,0.52386988]
[1729543706531,1e-08,67764.0,67763.0,1.24546988]
[1729543708331,1e-08,67764.0,67763.0,0.90950988]
[1729543709322,0.07380301,67764.0,67763.0,0.90950988]
[1729543710436,0.07380301,67764.0,67763.0,0.80274988]
[1729543710732,0.07380301,67764.0,67763.0,0.90946988]
[1729543711934,0.07380301,67764.0,67763.0,0.80274988]
[1729543712118,0.07380301,67764.0,67763.0,0.90946988]
[1729543712519,0.07380301,67764.0,67763.0,0.72894488]
[1729543712752,0.07380301,67764.0,67763.0,0.80274988]
[1729543713423,0.07380301,67764.0,67763.0,0.89440539]
[1729543714726,0.07380301,67764.0,67763.0,0.81525551]
[1729543715529,0.07380301,67764.0,67763.0,0.88877258]
[1729543715736,0.07380301,67764.0,67763.0,0.81525551]
[1729543715933,0.07380301,67764.0,67763.0,0.88877198]
[1729543716138,0.07380301,67764.0,67763.0,0.81525551]
[1729543716436,0.07380301,67764.0,67763.0,0.79713028]
[1729543716736,0.07380301,67764.0,67763.0,0.3628]
[1729543718336,0.07380301,67764.0,67763.0,0.42163967]
[1729543719940,0.07380301,67764.0,67763.0,0.3628]
[1729543720143,0.07380301,67764.0,67763.0,0.42163967]
[1729543720441,0.07380301,67764.0,67763.0,0.3628]
[1729543722639,0.07380301,67764.0,67763.0,0.002]
[1729543731643,0.07380301,67764.0,67754.0,0.05883967]
[1729543731644,0.073813,67755.0,67754.0,0.05883967]
[1729543731842,0.073813,67755.0,67747.0,0.073821]
[1729543731843,0.43460301,67764.0,67749.0,0.06105348]
[1729543732041,0.07380301,67764.0,67752.0,0.3608]
[1729543732343,0.073815,67753.0,67752.0,0.3608]
[1729543733539,0.073815,67753.0,67752.0,0.3618]
[1729543735142,0.073815,67753.0,67752.0,0.3628]
[1729543742651,0.073815,67753.0,67752.0,0.002]
[1729543743249,0.073815,67753.0,67752.0,0.3628]
[1729543743545,0.073815,67753.0,67752.0,0.52853754]
[1729543743746,0.073815,67753.0,67752.0,0.45503686]
[1729543743952,0.073815,67753.0,67752.0,0.52874466]
[1729543744153,0.073815,67753.0,67752.0,0.45503686]
[1729543744337,0.073815,67753.0,67752.0,0.52877144]
[1729543744541,0.073815,67753.0,67752.0,0.45503686]
[1729543750063,0.073815,67753.0,67752.0,0.52885386]
[1729543750556,0.073815,67753.0,67752.0,0.500817]
[1729543758663,0.073815,67753.0,67752.0,0.68179407]
[1729543759664,0.073815,67753.0,67752.0,0.59312672]
[1729543760754,0.073815,67753.0,67752.0,0.70292632]
[1729543761663,0.073815,67753.0,67752.0,0.59312672]
[1729543762265,0.073815,67753.0,67752.0,0.70295263]
[1729543762765,0.073815,67753.0,67752.0,0.59312672]
[1729543762964,0.073815,67753.0,67752.0,0.70285071]
[1729543763157,1e-08,67764.0,67754.0,0.073814]
[1729543763355,1e-08,67764.0,67752.0,1.03592672]
[1729543763356,0.07380301,67764.0,67763.0,0.14760713]
[1729543763551,0.07380301,67764.0,67763.0,0.16611472]
[1729543764759,1e-08,67764.0,67763.0,0.16611472]
[1729543765569,1e-08,67764.0,67763.0,0.16811472]
[1729543766665,1e-08,67764.0,67763.0,0.16737884]
[1729543766968,1e-08,67764.0,67763.0,0.1727285]
[1729543767377,1e-08,67764.0,67763.0,0.26113811]
[1729543767875,1e-08,67764.0,67763.0,0.1727285]
[1729543768257,1e-08,67764.0,67763.0,0.26111274]
[1729543769369,0.00221407,67778.0,67763.0,0.1727285]
[1729543769666,0.073792,67775.0,67773.0,0.434594]
[1729543769965,0.073792,67775.0,67773.0,0.63245023]
[1729543770465,0.073792,67775.0,67773.0,0.467594]
[1729543770664,0.073792,67775.0,67773.0,0.55869219]
[1729543770865,0.073792,67775.0,67773.0,0.63226507]
[1729543771067,0.07557257,67774.0,67773.0,0.54118514]
[1729543771371,0.07557257,67774.0,67773.0,0.54218514]
[1729543771671,0.07557257,67774.0,67773.0,0.468594]
[1729543772064,0.07557257,67774.0,67773.0,0.54218514]
[1729543772368,0.07557257,67774.0,67773.0,0.468594]
[1729543772971,0.07557257,67774.0,67773.0,0.469594]
[1729543774274,0.07557257,67774.0,67773.0,0.47496902]
[1729543779381,0.07557257,67774.0,67773.0,0.3628]
[1729543782587,0.07557257,67774.0,67773.0,0.36814492]
[1729543783984,0.07557257,67774.0,67773.0,0.00734492]
[1729543788487,0.07557257,67774.0,67773.0,0.002]
[1729543800789,0.073799,67768.0,67762.0,0.08838892]
[1729543800986,0.073799,67768.0,67756.0,0.073812]
[1729543800987,0.073806,67762.0,67761.0,0.07380163]
[1729543801186,0.0302,67767.0,67759.0,0.08128486]
[1729543801187,0.073808,67760.0,67759.0,0.08128486]
[1729543801390,0.073808,67760.0,67759.0,0.00748323]
[1729543802394,0.073808,67760.0,67759.0,0.00221334]
[1729543802588,0.073808,67760.0,67759.0,0.00321334]
[1729543804199,0.075808,67760.0,67759.0,0.00421334]
[1729543804696,0.075808,67760.0,67759.0,0.07802234]
[1729543805688,0.075808,67760.0,67759.0,0.00421334]
[1729543809399,0.075808,67760.0,67759.0,0.07802234]
[1729543815201,0.002,67760.0,67759.0,0.07802234]
[1729543819102,0.002,67760.0,67759.0,0.16934973]
[1729543821702,0.002,67760.0,67759.0,0.16933504]
[1729543822810,0.002,67760.0,67759.0,0.25773231]